[Event "Late-Titled-Tuesday-Blitz-September-12-2023"]
[Site "Chess.com"]
[Date "2023.09.12"]
[Round "2"]
[White "becemix"]
[Black "YellowJacek"]
[Result "0-1"]
[WhiteElo "2519"]
[BlackElo "2333"]
[TimeControl "180+1"]
[EndTime "14:17:05 PDT"]
[Termination "YellowJacek won on time"]

1. d4 {[%clk 0:02:58.6]} 1... Nf6 {[%clk 0:02:58.7]} 2. Nc3 {[%clk 0:02:57.5]}
2... d5 {[%clk 0:02:57.8]} 3. Bf4 {[%clk 0:02:57.4]} 3... c5 {[%clk 0:02:57.1]}
4. e3 {[%clk 0:02:56.2]} 4... Nc6 {[%clk 0:02:58]} 5. Nb5 {[%clk 0:02:52.1]}
5... e5 {[%clk 0:02:56.8]} 6. dxe5 {[%clk 0:02:51.8]} 6... Ne4 {[%clk 0:02:48]}
7. e6 {[%clk 0:02:41.6]} 7... Qa5+ {[%clk 0:02:44.8]} 8. c3 {[%clk 0:02:40.9]}
8... Bxe6 {[%clk 0:02:43.9]} 9. Nc7+ {[%clk 0:02:38]} 9... Kd7 {[%clk 0:02:43]}
10. Nxa8 {[%clk 0:02:11.8]} 10... Bd6 {[%clk 0:02:41.1]} 11. Bxd6 {[%clk
0:01:23.2]} 11... Kxd6 {[%clk 0:02:42]} 12. f3 {[%clk 0:01:17.7]} 12... Nf6
{[%clk 0:02:37.4]} 13. Bd3 {[%clk 0:01:14.5]} 13... Rxa8 {[%clk 0:02:35.4]} 14.
Ne2 {[%clk 0:01:13.9]} 14... c4 {[%clk 0:02:29.2]} 15. Bc2 {[%clk 0:00:56.9]}
15... Qb6 {[%clk 0:02:27.8]} 16. Qc1 {[%clk 0:00:57]} 16... Re8 {[%clk
0:02:19.9]} 17. Kf2 {[%clk 0:00:55.8]} 17... Nd7 {[%clk 0:02:06.3]} 18. Re1
{[%clk 0:00:55.1]} 18... Nc5 {[%clk 0:02:05.4]} 19. Nd4 {[%clk 0:00:51.9]} 19...
Ne5 {[%clk 0:02:04]} 20. Kg1 {[%clk 0:00:51.4]} 20... Ned3 {[%clk 0:02:03.5]}
21. Bxd3 {[%clk 0:00:51.3]} 21... Nxd3 {[%clk 0:02:04.4]} 22. Qc2 {[%clk
0:00:51.6]} 22... Nxe1 {[%clk 0:02:03.7]} 23. Rxe1 {[%clk 0:00:50.9]} 23... g6
{[%clk 0:01:59.5]} 24. h4 {[%clk 0:00:50.1]} 24... h5 {[%clk 0:01:57.8]} 25. Qf2
{[%clk 0:00:49.7]} 25... Ke7 {[%clk 0:01:56.6]} 26. Re2 {[%clk 0:00:47.9]} 26...
Kf8 {[%clk 0:01:55.8]} 27. Qg3 {[%clk 0:00:47.7]} 27... Kg7 {[%clk 0:01:51.6]}
28. Qe5+ {[%clk 0:00:47.4]} 28... Kg8 {[%clk 0:01:49.8]} 29. Qf6 {[%clk
0:00:47]} 29... Qd8 {[%clk 0:01:43.1]} 30. Qxd8 {[%clk 0:00:46.6]} 30... Rxd8
{[%clk 0:01:42.9]} 31. Kf2 {[%clk 0:00:47]} 31... Kg7 {[%clk 0:01:42.6]} 32. Ke1
{[%clk 0:00:46]} 32... Kf6 {[%clk 0:01:42.9]} 33. Kd2 {[%clk 0:00:46.5]} 33...
Ke5 {[%clk 0:01:43]} 34. Kc2 {[%clk 0:00:46.2]} 34... Rb8 {[%clk 0:01:42.9]} 35.
e4 {[%clk 0:00:45.8]} 35... dxe4 {[%clk 0:01:41]} 36. Rxe4+ {[%clk 0:00:46.7]}
36... Kd5 {[%clk 0:01:40.5]} 37. Nxe6 {[%clk 0:00:47.6]} 37... fxe6 {[%clk
0:01:40.9]} 38. Kd2 {[%clk 0:00:47.4]} 38... e5 {[%clk 0:01:40.4]} 39. Ke3
{[%clk 0:00:47]} 39... Rf8 {[%clk 0:01:38.2]} 40. b3 {[%clk 0:00:45.2]} 40... b5
{[%clk 0:01:35.1]} 41. Kd2 {[%clk 0:00:42.8]} 41... Rf4 {[%clk 0:01:31.2]} 42.
Rxf4 {[%clk 0:00:42.2]} 42... exf4 {[%clk 0:01:32.1]} 43. Kc2 {[%clk 0:00:40]}
43... a6 {[%clk 0:01:30.2]} 44. Kd2 {[%clk 0:00:39.6]} 44... Kc5 {[%clk
0:01:28.4]} 45. Kc2 {[%clk 0:00:37.7]} 45... Kd5 {[%clk 0:01:28.3]} 46. Kd2
{[%clk 0:00:37]} 46... cxb3 {[%clk 0:01:28.1]} 47. axb3 {[%clk 0:00:36.8]} 47...
a5 {[%clk 0:01:29]} 48. Kd3 {[%clk 0:00:37.1]} 48... a4 {[%clk 0:01:27.8]} 49.
c4+ {[%clk 0:00:37.6]} 49... bxc4+ {[%clk 0:01:25.6]} 50. bxc4+ {[%clk 0:00:37]}
50... Kc5 {[%clk 0:01:25.9]} 51. Kc3 {[%clk 0:00:37.4]} 51... a3 {[%clk
0:01:26.2]} 52. Kb3 {[%clk 0:00:37.9]} 52... a2 {[%clk 0:01:26.1]} 53. Kxa2
{[%clk 0:00:38.4]} 53... Kxc4 {[%clk 0:01:27]} 54. Kb2 {[%clk 0:00:38.9]} 54...
Kd3 {[%clk 0:01:27.9]} 55. Kb3 {[%clk 0:00:38.9]} 55... Ke2 {[%clk 0:01:28]} 56.
Kc3 {[%clk 0:00:39.5]} 56... Kf2 {[%clk 0:01:28.5]} 0-1

[Event "Late-Titled-Tuesday-Blitz-September-12-2023"]
[Site "Chess.com"]
[Date "2023.09.12"]
[Round "2"]
[White "Al_Shima"]
[Black "Mops_2004"]
[Result "0-1"]
[WhiteElo "2359"]
[BlackElo "2722"]
[TimeControl "180+1"]
[EndTime "14:17:06 PDT"]
[Termination "Mops_2004 won by resignation"]

1. b3 {[%clk 0:02:55.6]} 1... d5 {[%clk 0:02:59.3]} 2. Bb2 {[%clk 0:02:55.2]}
2... c6 {[%clk 0:02:59.9]} 3. e3 {[%clk 0:02:55.2]} 3... Nf6 {[%clk 0:02:59.2]}
4. f4 {[%clk 0:02:51.4]} 4... g6 {[%clk 0:02:55.4]} 5. Nf3 {[%clk 0:02:42.5]}
5... Bg7 {[%clk 0:02:55.3]} 6. h3 {[%clk 0:02:40.4]} 6... O-O {[%clk 0:02:54.9]}
7. g4 {[%clk 0:02:40.3]} 7... a5 {[%clk 0:02:46.6]} 8. a4 {[%clk 0:02:39.8]}
8... Ne4 {[%clk 0:02:39.6]} 9. Bxg7 {[%clk 0:02:36.2]} 9... Kxg7 {[%clk
0:02:40.5]} 10. Nc3 {[%clk 0:02:31]} 10... Ng3 {[%clk 0:02:21.7]} 11. Rg1 {[%clk
0:02:28.5]} 11... Nxf1 {[%clk 0:02:22.4]} 12. Kxf1 {[%clk 0:02:26.9]} 12... Qd6
{[%clk 0:02:21.7]} 13. d4 {[%clk 0:02:25.7]} 13... Nd7 {[%clk 0:02:05.7]} 14. h4
{[%clk 0:02:20.3]} 14... b5 {[%clk 0:01:57.9]} 15. Kf2 {[%clk 0:02:08.2]} 15...
b4 {[%clk 0:01:56.3]} 16. Ne2 {[%clk 0:02:02.4]} 16... Nf6 {[%clk 0:01:56.7]}
17. g5 {[%clk 0:02:00.5]} 17... Ng4+ {[%clk 0:01:56.1]} 18. Rxg4 {[%clk
0:01:55.3]} 18... Bxg4 {[%clk 0:01:57]} 19. Qd2 {[%clk 0:01:53.6]} 19... f6
{[%clk 0:01:55.4]} 20. Rg1 {[%clk 0:01:52.4]} 20... Bxf3 {[%clk 0:01:43]} 21.
Kxf3 {[%clk 0:01:53.3]} 21... fxg5 {[%clk 0:01:40.2]} 22. hxg5 {[%clk 0:01:47]}
22... e5 {[%clk 0:01:38.2]} 23. dxe5 {[%clk 0:01:45.3]} 23... Qxe5 {[%clk
0:01:39.1]} 24. Qd4 {[%clk 0:01:42.1]} 24... Rae8 {[%clk 0:01:18.9]} 25. Qxe5+
{[%clk 0:01:10.3]} 25... Rxe5 {[%clk 0:01:19.8]} 26. Rd1 {[%clk 0:00:58.1]}
26... c5 {[%clk 0:00:57.2]} 27. Ng3 {[%clk 0:00:55.1]} 27... Rxg5 {[%clk
0:00:54.3]} 28. e4 {[%clk 0:00:48.7]} 28... dxe4+ {[%clk 0:00:51]} 29. Nxe4
{[%clk 0:00:48]} 29... Rgf5 {[%clk 0:00:50.9]} 30. Ke3 {[%clk 0:00:33.3]} 30...
Rxf4 {[%clk 0:00:50.1]} 31. Nxc5 {[%clk 0:00:32.9]} 31... Rf3+ {[%clk
0:00:48.6]} 32. Ke2 {[%clk 0:00:26.6]} 32... Rf2+ {[%clk 0:00:47.3]} 33. Ke3
{[%clk 0:00:26.7]} 33... R8f3+ {[%clk 0:00:45.9]} 34. Ke4 {[%clk 0:00:27]} 34...
Rc3 {[%clk 0:00:43.5]} 35. Ne6+ {[%clk 0:00:25.2]} 35... Kf6 {[%clk 0:00:43.5]}
36. Nd4 {[%clk 0:00:24.2]} 36... h5 {[%clk 0:00:37.7]} 37. Re1 {[%clk
0:00:20.7]} 37... h4 {[%clk 0:00:37.1]} 38. Kd5 {[%clk 0:00:20.8]} 38... h3
{[%clk 0:00:36.3]} 39. Re6+ {[%clk 0:00:20.2]} 39... Kf7 {[%clk 0:00:35.4]} 40.
Re4 {[%clk 0:00:20]} 40... h2 {[%clk 0:00:34.5]} 41. Rh4 {[%clk 0:00:20.1]}
41... g5 {[%clk 0:00:32.4]} 42. Rh7+ {[%clk 0:00:19.7]} 42... Kg6 {[%clk
0:00:32.3]} 43. Rh8 {[%clk 0:00:20.6]} 43... g4 {[%clk 0:00:31.9]} 44. Rg8+
{[%clk 0:00:20.3]} 44... Kh7 {[%clk 0:00:31.3]} 0-1

[Event "Late-Titled-Tuesday-Blitz-September-12-2023"]
[Site "Chess.com"]
[Date "2023.09.12"]
[Round "2"]
[White "Jospem"]
[Black "Orest_Vovk"]
[Result "1-0"]
[WhiteElo "3103"]
[BlackElo "2591"]
[TimeControl "180+1"]
[EndTime "14:17:07 PDT"]
[Termination "Jospem won on time"]

1. e4 {[%clk 0:02:57.1]} 1... g5 {[%clk 0:02:57.8]} 2. d4 {[%clk 0:02:57.6]}
2... g4 {[%clk 0:02:54.3]} 3. Nc3 {[%clk 0:02:57.8]} 3... Bg7 {[%clk 0:02:53.8]}
4. Be3 {[%clk 0:02:52.9]} 4... h5 {[%clk 0:02:52]} 5. Qd2 {[%clk 0:02:53.2]}
5... c6 {[%clk 0:02:49.8]} 6. f3 {[%clk 0:02:50.2]} 6... d6 {[%clk 0:02:47.9]}
7. O-O-O {[%clk 0:02:49.6]} 7... Qa5 {[%clk 0:02:47.1]} 8. Kb1 {[%clk
0:02:48.8]} 8... b5 {[%clk 0:02:38.2]} 9. Bd3 {[%clk 0:02:35.9]} 9... Be6 {[%clk
0:02:27.4]} 10. b3 {[%clk 0:02:33.8]} 10... Nd7 {[%clk 0:02:11.9]} 11. Nge2
{[%clk 0:02:31.1]} 11... Nb6 {[%clk 0:02:08.3]} 12. Nf4 {[%clk 0:02:19.1]} 12...
Bd7 {[%clk 0:01:34.7]} 13. Rhe1 {[%clk 0:02:09]} 13... c5 {[%clk 0:01:20.5]} 14.
Ncd5 {[%clk 0:01:43.6]} 14... Qxd2 {[%clk 0:01:07.6]} 15. Bxd2 {[%clk
0:01:44.5]} 15... Nxd5 {[%clk 0:00:53.8]} 16. Nxd5 {[%clk 0:01:43.3]} 16... Rc8
{[%clk 0:00:52.6]} 17. dxc5 {[%clk 0:01:25.8]} 17... dxc5 {[%clk 0:00:53.5]} 18.
Bc3 {[%clk 0:01:26.2]} 18... Bxc3 {[%clk 0:00:50.3]} 19. Nxc3 {[%clk 0:01:27.1]}
19... c4 {[%clk 0:00:48.7]} 20. bxc4 {[%clk 0:01:28]} 20... bxc4 {[%clk
0:00:49.1]} 21. Bf1 {[%clk 0:01:28.7]} 21... gxf3 {[%clk 0:00:43.3]} 22. gxf3
{[%clk 0:01:29.6]} 22... Nf6 {[%clk 0:00:43.2]} 23. e5 {[%clk 0:01:22.9]} 23...
Nh7 {[%clk 0:00:43]} 24. f4 {[%clk 0:01:14.4]} 24... Nf8 {[%clk 0:00:42.4]} 25.
Re4 {[%clk 0:01:07]} 25... Be6 {[%clk 0:00:35.1]} 26. Kc1 {[%clk 0:00:59.1]}
26... Ng6 {[%clk 0:00:28.7]} 27. Red4 {[%clk 0:00:59.4]} 27... O-O {[%clk
0:00:24.1]} 28. Be2 {[%clk 0:00:56.5]} 28... h4 {[%clk 0:00:19.3]} 29. Rg1
{[%clk 0:00:53.3]} 29... Kh8 {[%clk 0:00:19]} 30. Rg5 {[%clk 0:00:51.2]} 30...
Rfd8 {[%clk 0:00:17.1]} 31. Rxd8+ {[%clk 0:00:48.6]} 31... Rxd8 {[%clk 0:00:18]}
32. f5 {[%clk 0:00:49.2]} 32... Bxf5 {[%clk 0:00:12.1]} 33. Rxf5 {[%clk
0:00:49.2]} 33... Kg7 {[%clk 0:00:13]} 34. e6 {[%clk 0:00:45.3]} 34... fxe6
{[%clk 0:00:05.7]} 35. Ra5 {[%clk 0:00:45.5]} 35... Nf4 {[%clk 0:00:02.7]} 36.
Bf1 {[%clk 0:00:46.1]} 36... Kf6 {[%clk 0:00:02]} 37. Ne4+ {[%clk 0:00:46.2]}
37... Kg6 {[%clk 0:00:02]} 38. Ra4 {[%clk 0:00:41.4]} 38... e5 {[%clk
0:00:02.9]} 39. Rxc4 {[%clk 0:00:41.4]} 39... Kf5 {[%clk 0:00:02.4]} 40. Nd2
{[%clk 0:00:40.9]} 1-0

[Event "Late-Titled-Tuesday-Blitz-September-12-2023"]
[Site "Chess.com"]
[Date "2023.09.12"]
[Round "2"]
[White "Hikaru"]
[Black "Alexei_Gubajdullin"]
[Result "1-0"]
[WhiteElo "3220"]
[BlackElo "2604"]
[TimeControl "180+1"]
[EndTime "14:17:10 PDT"]
[Termination "Hikaru won on time"]

1. Nf3 {[%clk 0:02:53.2]} 1... Nf6 {[%clk 0:02:59.9]} 2. b3 {[%clk 0:02:53.2]}
2... g6 {[%clk 0:02:59.6]} 3. Bb2 {[%clk 0:02:53.1]} 3... Bg7 {[%clk 0:02:59.7]}
4. e3 {[%clk 0:02:52.5]} 4... O-O {[%clk 0:02:59.8]} 5. d4 {[%clk 0:02:53.2]}
5... b6 {[%clk 0:02:56.9]} 6. Be2 {[%clk 0:02:51.8]} 6... Bb7 {[%clk 0:02:56.9]}
7. c4 {[%clk 0:02:48.6]} 7... e6 {[%clk 0:02:56.3]} 8. O-O {[%clk 0:02:48.6]}
8... d6 {[%clk 0:02:56.4]} 9. Qc2 {[%clk 0:02:48.9]} 9... Ne4 {[%clk 0:02:54.8]}
10. Ne1 {[%clk 0:02:46]} 10... f5 {[%clk 0:02:53.6]} 11. f3 {[%clk 0:02:45.6]}
11... Ng5 {[%clk 0:02:53.5]} 12. Nd3 {[%clk 0:02:45.4]} 12... Nd7 {[%clk
0:02:53.3]} 13. Nc3 {[%clk 0:02:45.1]} 13... Qe7 {[%clk 0:02:45.6]} 14. Rad1
{[%clk 0:02:42]} 14... a6 {[%clk 0:02:43.4]} 15. a4 {[%clk 0:02:39.2]} 15... Bh6
{[%clk 0:02:34.5]} 16. a5 {[%clk 0:02:37.4]} 16... Nf7 {[%clk 0:02:34]} 17. Bc1
{[%clk 0:02:35.5]} 17... e5 {[%clk 0:02:20.8]} 18. axb6 {[%clk 0:02:25.1]} 18...
cxb6 {[%clk 0:02:20.1]} 19. Nb4 {[%clk 0:02:24.8]} 19... Nf6 {[%clk 0:02:13.7]}
20. dxe5 {[%clk 0:02:16.8]} 20... dxe5 {[%clk 0:01:56.7]} 21. Nbd5 {[%clk
0:02:16.4]} 21... Nxd5 {[%clk 0:01:56.7]} 22. Nxd5 {[%clk 0:02:17.3]} 22... Bxd5
{[%clk 0:01:56.4]} 23. Rxd5 {[%clk 0:02:16.5]} 23... Rfd8 {[%clk 0:01:52.4]} 24.
f4 {[%clk 0:02:13.4]} 24... Rxd5 {[%clk 0:01:40.2]} 25. cxd5 {[%clk 0:02:14.3]}
25... b5 {[%clk 0:01:40.3]} 26. Qc6 {[%clk 0:02:08.3]} 26... Rd8 {[%clk
0:01:38]} 27. Qe6 {[%clk 0:02:01.7]} 27... Qc7 {[%clk 0:01:27]} 28. Ba3 {[%clk
0:02:00]} 28... Bf8 {[%clk 0:01:15.2]} 29. Bxf8 {[%clk 0:01:58.2]} 29... Kxf8
{[%clk 0:01:14.8]} 30. Qxa6 {[%clk 0:01:53.4]} 30... Rxd5 {[%clk 0:01:12.8]} 31.
Bxb5 {[%clk 0:01:45.5]} 31... Qc5 {[%clk 0:01:11.6]} 32. Bc4 {[%clk 0:01:44.1]}
32... Qxe3+ {[%clk 0:01:01]} 33. Kh1 {[%clk 0:01:44.1]} 33... Rd7 {[%clk
0:01:00.5]} 34. Qc8+ {[%clk 0:01:32.6]} 34... Ke7 {[%clk 0:00:20.1]} 35. Bxf7
{[%clk 0:01:31.5]} 35... Qxf4 {[%clk 0:00:15.6]} 36. Qe8+ {[%clk 0:01:30.9]}
36... Kf6 {[%clk 0:00:15.4]} 37. Bc4 {[%clk 0:01:24.2]} 37... Qd4 {[%clk
0:00:12]} 38. h3 {[%clk 0:01:11.9]} 38... e4 {[%clk 0:00:11.9]} 39. Qh8+ {[%clk
0:01:09.9]} 39... Kg5 {[%clk 0:00:11.3]} 40. Qxd4 {[%clk 0:01:10.8]} 40... Rxd4
{[%clk 0:00:11.3]} 41. Rb1 {[%clk 0:01:11.6]} 41... f4 {[%clk 0:00:09.8]} 42.
Kg1 {[%clk 0:01:09.9]} 42... Kh4 {[%clk 0:00:09]} 43. Bf1 {[%clk 0:01:08.3]}
43... Kg3 {[%clk 0:00:08.7]} 44. b4 {[%clk 0:01:08.7]} 44... f3 {[%clk
0:00:08.1]} 45. gxf3 {[%clk 0:01:07.5]} 45... exf3 {[%clk 0:00:08.2]} 46. b5
{[%clk 0:01:07.3]} 46... Rd2 {[%clk 0:00:08.1]} 47. b6 {[%clk 0:01:04]} 47...
Rd8 {[%clk 0:00:01.7]} 48. b7 {[%clk 0:01:03.7]} 48... Rb8 {[%clk 0:00:01.4]}
49. Ba6 {[%clk 0:01:03.7]} 49... g5 {[%clk 0:00:01.4]} 50. Rc1 {[%clk
0:01:03.7]} 50... h5 {[%clk 0:00:01.4]} 51. Rc8 {[%clk 0:01:03.4]} 1-0

[Event "Late-Titled-Tuesday-Blitz-September-12-2023"]
[Site "Chess.com"]
[Date "2023.09.12"]
[Round "2"]
[White "SergioMoralesG"]
[Black "TanitoluwaAps116"]
[Result "0-1"]
[WhiteElo "2404"]
[BlackElo "2718"]
[TimeControl "180+1"]
[EndTime "14:17:10 PDT"]
[Termination "TanitoluwaAps116 won on time"]

1. d4 {[%clk 0:03:00.9]} 1... Nf6 {[%clk 0:02:57.1]} 2. c4 {[%clk 0:03:00.8]}
2... e6 {[%clk 0:02:57.2]} 3. Nf3 {[%clk 0:03:00.5]} 3... b6 {[%clk 0:02:56.6]}
4. g3 {[%clk 0:03:00]} 4... Ba6 {[%clk 0:02:54.9]} 5. b3 {[%clk 0:02:59.9]} 5...
Bb4+ {[%clk 0:02:54.4]} 6. Bd2 {[%clk 0:02:57.3]} 6... Be7 {[%clk 0:02:53.6]} 7.
Nc3 {[%clk 0:02:57.2]} 7... c6 {[%clk 0:02:53.3]} 8. Bg2 {[%clk 0:02:57]} 8...
d5 {[%clk 0:02:53.3]} 9. O-O {[%clk 0:02:39.1]} 9... O-O {[%clk 0:02:53]} 10.
Rc1 {[%clk 0:02:31.2]} 10... Nbd7 {[%clk 0:02:50]} 11. cxd5 {[%clk 0:02:11.7]}
11... cxd5 {[%clk 0:02:49.1]} 12. Bf4 {[%clk 0:02:03.6]} 12... Rc8 {[%clk
0:02:42.7]} 13. Ne5 {[%clk 0:01:54]} 13... Nxe5 {[%clk 0:02:30.2]} 14. Bxe5
{[%clk 0:01:53.1]} 14... Nd7 {[%clk 0:02:27.1]} 15. Bf4 {[%clk 0:01:52.9]} 15...
Ba3 {[%clk 0:02:22.3]} 16. Rc2 {[%clk 0:01:52.8]} 16... Qe7 {[%clk 0:02:11.4]}
17. Bc1 {[%clk 0:01:44.9]} 17... Bxc1 {[%clk 0:02:06.1]} 18. Qxc1 {[%clk
0:01:43.4]} 18... Qb4 {[%clk 0:02:02.8]} 19. Rd1 {[%clk 0:01:27.4]} 19... g6
{[%clk 0:01:51]} 20. Bf3 {[%clk 0:01:26.4]} 20... Kg7 {[%clk 0:01:49.7]} 21. Qb2
{[%clk 0:01:21]} 21... Rc7 {[%clk 0:01:32.3]} 22. a3 {[%clk 0:01:12.4]} 22...
Qd6 {[%clk 0:01:29.9]} 23. Rdc1 {[%clk 0:00:49.6]} 23... Rfc8 {[%clk 0:01:29]}
24. a4 {[%clk 0:00:32.8]} 24... Qb4 {[%clk 0:01:08.4]} 25. e3 {[%clk 0:00:28.2]}
25... Nf6 {[%clk 0:01:02.1]} 26. Kg2 {[%clk 0:00:27.4]} 26... Bd3 {[%clk
0:01:01.4]} 27. Na2 {[%clk 0:00:15.6]} 27... Rxc2 {[%clk 0:00:54.2]} 28. Nxb4
{[%clk 0:00:06.6]} 28... Rxb2 {[%clk 0:00:51.9]} 29. Rxc8 {[%clk 0:00:07.1]}
29... Be4 {[%clk 0:00:43.8]} 30. Nc6 {[%clk 0:00:04.6]} 30... Bxf3+ {[%clk
0:00:34]} 31. Kxf3 {[%clk 0:00:05.5]} 31... Ne4 {[%clk 0:00:34.2]} 32. Ne5
{[%clk 0:00:03.6]} 32... Rxf2+ {[%clk 0:00:35.1]} 33. Kg4 {[%clk 0:00:03.6]}
33... h5+ {[%clk 0:00:20.4]} 0-1

[Event "Late-Titled-Tuesday-Blitz-September-12-2023"]
[Site "Chess.com"]
[Date "2023.09.12"]
[Round "2"]
[White "jcibarra"]
[Black "KamilGrycel"]
[Result "1-0"]
[WhiteElo "2923"]
[BlackElo "2526"]
[TimeControl "180+1"]
[EndTime "14:17:16 PDT"]
[Termination "jcibarra won by resignation"]

1. e4 {[%clk 0:03:00.9]} 1... d6 {[%clk 0:02:59]} 2. d4 {[%clk 0:03:00.4]} 2...
Nf6 {[%clk 0:02:58.5]} 3. Nc3 {[%clk 0:03:00.3]} 3... c6 {[%clk 0:02:58.1]} 4.
f4 {[%clk 0:03:00.2]} 4... Qb6 {[%clk 0:02:57.8]} 5. h3 {[%clk 0:02:49.4]} 5...
e5 {[%clk 0:02:30.1]} 6. Nf3 {[%clk 0:02:49.2]} 6... Nbd7 {[%clk 0:02:25]} 7. a3
{[%clk 0:02:46.4]} 7... exd4 {[%clk 0:01:55.9]} 8. Nxd4 {[%clk 0:02:45.5]} 8...
d5 {[%clk 0:01:56.3]} 9. e5 {[%clk 0:02:41.5]} 9... Ne4 {[%clk 0:01:56]} 10.
Nxe4 {[%clk 0:02:38.9]} 10... dxe4 {[%clk 0:01:56.2]} 11. e6 {[%clk 0:02:15.6]}
11... fxe6 {[%clk 0:01:39.9]} 12. Nxe6 {[%clk 0:02:15]} 12... Nf6 {[%clk
0:01:34.3]} 13. Bc4 {[%clk 0:02:02.9]} 13... Bxe6 {[%clk 0:01:24.4]} 14. Bxe6
{[%clk 0:02:03.6]} 14... Rd8 {[%clk 0:01:22.7]} 15. Qe2 {[%clk 0:02:01.9]} 15...
Bc5 {[%clk 0:01:18.3]} 16. Rf1 {[%clk 0:01:38.7]} 16... Rd6 {[%clk 0:01:13.3]}
17. f5 {[%clk 0:01:33.4]} 17... Ke7 {[%clk 0:00:38.4]} 18. c3 {[%clk 0:01:07.2]}
18... Rhd8 {[%clk 0:00:37.5]} 19. Bf4 {[%clk 0:01:06.8]} 19... Rd3 {[%clk
0:00:34]} 20. Bc4 {[%clk 0:00:59.7]} 20... Kf8 {[%clk 0:00:19]} 21. b4 {[%clk
0:00:33.6]} 21... Be3 {[%clk 0:00:17.1]} 22. Bxd3 {[%clk 0:00:30.6]} 22... Rxd3
{[%clk 0:00:17.3]} 23. Rd1 {[%clk 0:00:27.1]} 23... Rxc3 {[%clk 0:00:16.6]} 24.
Be5 {[%clk 0:00:21.7]} 24... Rxa3 {[%clk 0:00:16]} 25. Qc4 {[%clk 0:00:16.8]}
25... Ra4 {[%clk 0:00:06.8]} 26. Bd6+ {[%clk 0:00:15.4]} 26... Ke8 {[%clk
0:00:06.5]} 27. Qe6+ {[%clk 0:00:15.7]} 27... Kd8 {[%clk 0:00:06.4]} 28. Bc5+
{[%clk 0:00:14]} 28... Nd5 {[%clk 0:00:05.1]} 29. Bxb6+ {[%clk 0:00:12]} 29...
axb6 {[%clk 0:00:05.5]} 30. Rxd5+ {[%clk 0:00:11.5]} 30... cxd5 {[%clk
0:00:06.2]} 31. Qxd5+ {[%clk 0:00:11.9]} 31... Kc7 {[%clk 0:00:06.7]} 32. Qf7+
{[%clk 0:00:11.8]} 32... Kb8 {[%clk 0:00:07]} 33. Qe8+ {[%clk 0:00:12]} 33...
Ka7 {[%clk 0:00:07]} 34. Qxa4+ {[%clk 0:00:12.7]} 1-0

[Event "Late-Titled-Tuesday-Blitz-September-12-2023"]
[Site "Chess.com"]
[Date "2023.09.12"]
[Round "2"]
[White "Korchmar_Vasiliy"]
[Black "PedroGil25"]
[Result "1-0"]
[WhiteElo "2698"]
[BlackElo "2331"]
[TimeControl "180+1"]
[EndTime "14:17:17 PDT"]
[Termination "Korchmar_Vasiliy won on time"]

1. e4 {[%clk 0:03:00.9]} 1... c5 {[%clk 0:02:58.4]} 2. d4 {[%clk 0:03:00.6]}
2... cxd4 {[%clk 0:02:56.3]} 3. Qxd4 {[%clk 0:03:01.5]} 3... Nc6 {[%clk
0:02:52.9]} 4. Qd3 {[%clk 0:03:01.4]} 4... Nf6 {[%clk 0:02:52.6]} 5. Nc3 {[%clk
0:03:01.4]} 5... d6 {[%clk 0:02:47.4]} 6. Nf3 {[%clk 0:02:51.2]} 6... g6 {[%clk
0:02:44]} 7. Be2 {[%clk 0:02:50]} 7... Bg7 {[%clk 0:02:41.3]} 8. O-O {[%clk
0:02:50.2]} 8... O-O {[%clk 0:02:40.2]} 9. Nd5 {[%clk 0:02:50.8]} 9... Nxd5
{[%clk 0:02:35]} 10. exd5 {[%clk 0:02:51.7]} 10... Nb4 {[%clk 0:02:34.8]} 11.
Qd1 {[%clk 0:02:51.8]} 11... Bf5 {[%clk 0:02:33.5]} 12. c3 {[%clk 0:02:51.6]}
12... Nc2 {[%clk 0:02:21]} 13. g4 {[%clk 0:02:50]} 13... Nxa1 {[%clk 0:02:09.4]}
14. gxf5 {[%clk 0:02:49]} 14... Qd7 {[%clk 0:02:07.3]} 15. fxg6 {[%clk
0:02:45.6]} 15... fxg6 {[%clk 0:02:06.4]} 16. Ng5 {[%clk 0:02:14.5]} 16... Rf5
{[%clk 0:01:54.3]} 17. Bg4 {[%clk 0:02:09.1]} 17... Raf8 {[%clk 0:01:50.9]} 18.
Be3 {[%clk 0:02:03.4]} 18... Nc2 {[%clk 0:01:47.2]} 19. Bd2 {[%clk 0:01:35]}
19... Qa4 {[%clk 0:01:24.7]} 20. Ne6 {[%clk 0:01:18.7]} 20... R8f7 {[%clk
0:01:11]} 21. Bxf5 {[%clk 0:00:20.3]} 21... Rxf5 {[%clk 0:01:06.9]} 22. Qe2
{[%clk 0:00:14]} 22... Bf6 {[%clk 0:01:01.1]} 23. b3 {[%clk 0:00:08.3]} 23...
Qxa2 {[%clk 0:01:00.4]} 24. Qb5 {[%clk 0:00:08.2]} 24... Bg7 {[%clk 0:00:47.5]}
25. Qe8+ {[%clk 0:00:06.3]} 25... Bf8 {[%clk 0:00:47.4]} 26. Bh6 {[%clk
0:00:06]} 26... Ne3 {[%clk 0:00:17.4]} 27. Nxf8 {[%clk 0:00:06.2]} 27... Nxf1
{[%clk 0:00:01.5]} 28. Ne6+ {[%clk 0:00:05.6]} 1-0